[Event "Titled Tuesday Blitz July 25 Late 2023"]
[White "Topalov, Aleksandar"]
[Black "Rottenwohrer Suarez, Juan"]
[WhiteFideId "925659"]
[BlackFideId "32068182"]
[WhiteElo "2351"]
[BlackElo "2534"]
[Result "1-0"]
[Round "2"]
[TimeControl "180+2"]
[Date "2023.07.25"]
[WhiteClock "0:00:01"]
[BlackClock "0:00:00"]
[Board "138"]

1. b3 {[%clk 0:03:00]}  Nf6 {[%clk 0:02:55]} 2. Bb2 {[%clk 0:03:00]}  d5 {[%clk 0:02:53]} 3. Nf3 {[%clk 0:03:00]}  c5 {[%clk 0:02:52]} 4. e3 {[%clk 0:02:59]}  Nc6 {[%clk 0:02:47]} 5. Bb5 {[%clk 0:02:58]}  Bd7 {[%clk 0:02:21]} 6. O-O {[%clk 0:02:57]}  g6 {[%clk 0:02:18]} 7. c4 {[%clk 0:02:55]}  dxc4 {[%clk 0:02:13]} 8. Bxc4 {[%clk 0:02:54]}  Bg7 {[%clk 0:02:12]} 9. a3 {[%clk 0:02:54]}  O-O {[%clk 0:02:10]} 10. Qc2 {[%clk 0:02:54]}  Rc8 {[%clk 0:02:09]} 11. Be2 {[%clk 0:02:54]}  b6 {[%clk 0:02:04]} 12. d3 {[%clk 0:02:54]}  Re8 {[%clk 0:01:52]} 13. Nbd2 {[%clk 0:02:53]}  Bf5 {[%clk 0:01:36]} 14. Rac1 {[%clk 0:02:48]}  Qd7 {[%clk 0:01:35]} 15. Rfd1 {[%clk 0:02:43]}  Red8 {[%clk 0:01:34]} 16. Nc4 {[%clk 0:02:41]}  h6 {[%clk 0:01:28]} 17. h3 {[%clk 0:02:24]}  g5 {[%clk 0:01:27]} 18. Qb1 {[%clk 0:02:14]}  Bg6 {[%clk 0:01:23]} 19. Nfe5 {[%clk 0:02:10]}  Nxe5 {[%clk 0:01:18]} 20. Nxe5 {[%clk 0:02:10]}  Qf5 {[%clk 0:01:11]} 21. g4 {[%clk 0:02:09]}  Qe6 {[%clk 0:01:03]} 22. Nxg6 {[%clk 0:02:08]}  fxg6 {[%clk 0:01:04]} 23. d4 {[%clk 0:02:06]}  Kh7 {[%clk 0:01:02]} 24. Bc4 {[%clk 0:01:57]}  Qe4 {[%clk 0:00:51]} 25. dxc5 {[%clk 0:01:20]}  Qxb1 {[%clk 0:00:49]} 26. Rxb1 {[%clk 0:01:19]}  Rxd1+ {[%clk 0:00:46]} 27. Rxd1 {[%clk 0:01:18]}  Rxc5 {[%clk 0:00:47]} 28. Rd8 {[%clk 0:01:13]}  b5 {[%clk 0:00:37]} 29. Be6 {[%clk 0:01:07]}  Rc6 {[%clk 0:00:31]} 30. Bf7 {[%clk 0:01:00]}  h5 {[%clk 0:00:20]} 31. Bd4 {[%clk 0:00:20]}  a5 {[%clk 0:00:01]} 32. Rb8 {[%clk 0:00:16]}  a4 {[%clk 0:00:01]} 33. bxa4 {[%clk 0:00:15]}  bxa4 {[%clk 0:00:02]} 34. Ra8 {[%clk 0:00:15]}  hxg4 {[%clk 0:00:03]} 35. hxg4 {[%clk 0:00:14]}  Nxg4 {[%clk 0:00:02]} 36. Rxa4 {[%clk 0:00:11]}  Rc1+ {[%clk 0:00:01]} 37. Kg2 {[%clk 0:00:10]}  Bxd4 {[%clk 0:00:02]} 38. Rxd4 {[%clk 0:00:10]}  Ne5 {[%clk 0:00:02]} 39. Bd5 {[%clk 0:00:08]}  Kg7 {[%clk 0:00:02]} 40. a4 {[%clk 0:00:08]}  Kf6 {[%clk 0:00:03]} 41. Bb7 {[%clk 0:00:05]}  Ra1 {[%clk 0:00:03]} 42. Rb4 {[%clk 0:00:04]}  g4 {[%clk 0:00:03]} 43. Kg3 {[%clk 0:00:04]}  Nd3 {[%clk 0:00:04]} 44. Rb6+ {[%clk 0:00:02]}  Kg5 {[%clk 0:00:02]} 45. Rb5+ {[%clk 0:00:02]}  e5 {[%clk 0:00:02]} 46. Be4 {[%clk 0:00:01]}  Rg1+ {[%clk 0:00:03]} 47. Kh2 {[%clk 0:00:01]}  Rd1 {[%clk 0:00:03]} 48. Bxd3 {[%clk 0:00:01]}  Rxd3 {[%clk 0:00:04]} 49. Rxe5+ {[%clk 0:00:01]}  Kh4 {[%clk 0:00:03]} 50. Re8 {[%clk 0:00:01]}  Rd2 {[%clk 0:00:03]} 51. Kg2 {[%clk 0:00:01]}  Ra2 {[%clk 0:00:02]} 52. Re4 {[%clk 0:00:01]}  Kg5 {[%clk 0:00:00]} 53. Rd4 {[%clk 0:00:01]} 1-0


[Site "https://www.chess.com"]

[Event "Titled Tuesday Blitz July 25 Late 2023"]
[White "Novik, Maxim"]
[Black "DampFalcon"]
[WhiteFideId "4102924"]
[WhiteElo "2505"]
[BlackElo "2325"]
[Result "0-1"]
[Round "2"]
[TimeControl "180+2"]
[Date "2023.07.25"]
[WhiteClock "0:01:18"]
[BlackClock "0:00:14"]
[Board "148"]

1. e4 {[%clk 0:03:00]}  c5 {[%clk 0:02:55]} 2. Nf3 {[%clk 0:03:00]}  Nc6 {[%clk 0:02:55]} 3. Bb5 {[%clk 0:02:59]}  g6 {[%clk 0:02:54]} 4. O-O {[%clk 0:02:59]}  Bg7 {[%clk 0:02:53]} 5. Re1 {[%clk 0:02:59]}  e6 {[%clk 0:02:53]} 6. c3 {[%clk 0:02:57]}  Nge7 {[%clk 0:02:53]} 7. d4 {[%clk 0:02:56]}  cxd4 {[%clk 0:02:46]} 8. cxd4 {[%clk 0:02:56]}  d5 {[%clk 0:02:46]} 9. e5 {[%clk 0:02:56]}  a6 {[%clk 0:02:41]} 10. Bd3 {[%clk 0:02:53]}  O-O {[%clk 0:02:31]} 11. a3 {[%clk 0:02:52]}  Qb6 {[%clk 0:02:18]} 12. Bc2 {[%clk 0:02:50]}  Nf5 {[%clk 0:02:10]} 13. Bxf5 {[%clk 0:02:49]}  exf5 {[%clk 0:02:09]} 14. Nc3 {[%clk 0:02:48]}  Be6 {[%clk 0:02:08]} 15. Be3 {[%clk 0:02:46]}  Rac8 {[%clk 0:01:49]} 16. Qd2 {[%clk 0:02:45]}  Na5 {[%clk 0:01:46]} 17. Rad1 {[%clk 0:02:43]}  Nc4 {[%clk 0:01:44]} 18. Qe2 {[%clk 0:02:43]}  Qxb2 {[%clk 0:01:38]} 19. Na4 {[%clk 0:02:24]}  Qxe2 {[%clk 0:01:32]} 20. Rxe2 {[%clk 0:02:24]}  Nxa3 {[%clk 0:01:26]} 21. Nc5 {[%clk 0:02:23]}  Rc7 {[%clk 0:01:23]} 22. Rb2 {[%clk 0:02:12]}  Bc8 {[%clk 0:01:16]} 23. Nd2 {[%clk 0:02:05]}  Nb5 {[%clk 0:00:43]} 24. f4 {[%clk 0:01:57]}  Re8 {[%clk 0:00:43]} 25. Ra1 {[%clk 0:01:49]}  Bf8 {[%clk 0:00:41]} 26. Ndb3 {[%clk 0:01:48]}  b6 {[%clk 0:00:18]} 27. Nxa6 {[%clk 0:01:46]}  Ra7 {[%clk 0:00:17]} 28. Rba2 {[%clk 0:01:46]}  Nc3 {[%clk 0:00:16]} 29. Rc2 {[%clk 0:01:43]}  Rxa6 {[%clk 0:00:12]} 30. Rxa6 {[%clk 0:01:43]}  Bxa6 {[%clk 0:00:13]} 31. Rxc3 {[%clk 0:01:43]}  Bc4 {[%clk 0:00:12]} 32. Nd2 {[%clk 0:01:41]}  b5 {[%clk 0:00:11]} 33. Nxc4 {[%clk 0:01:40]}  bxc4 {[%clk 0:00:09]} 34. Rc2 {[%clk 0:01:38]}  Rb8 {[%clk 0:00:07]} 35. Kf2 {[%clk 0:01:38]}  Kg7 {[%clk 0:00:07]} 36. Ra2 {[%clk 0:01:31]}  Rb3 {[%clk 0:00:07]} 37. Ra5 {[%clk 0:01:29]}  c3 {[%clk 0:00:05]} 38. Ke2 {[%clk 0:01:25]}  c2 {[%clk 0:00:03]} 39. Bc1 {[%clk 0:01:25]}  Rb1 {[%clk 0:00:03]} 40. Kd2 {[%clk 0:01:22]}  Bb4+ {[%clk 0:00:02]} 41. Kxc2 {[%clk 0:01:22]}  Rxc1+ {[%clk 0:00:03]} 42. Kxc1 {[%clk 0:01:22]}  Bxa5 {[%clk 0:00:03]} 43. Kc2 {[%clk 0:01:23]}  Kf8 {[%clk 0:00:04]} 44. h3 {[%clk 0:01:23]}  Ke7 {[%clk 0:00:05]} 45. g4 {[%clk 0:01:23]}  Ke6 {[%clk 0:00:06]} 46. Kd3 {[%clk 0:01:22]}  Bb6 {[%clk 0:00:05]} 47. Kc3 {[%clk 0:01:22]}  h6 {[%clk 0:00:05]} 48. Kd3 {[%clk 0:01:22]}  f6 {[%clk 0:00:05]} 49. Kc3 {[%clk 0:01:20]}  fxg4 {[%clk 0:00:05]} 50. hxg4 {[%clk 0:01:20]}  f5 {[%clk 0:00:05]} 51. gxf5+ {[%clk 0:01:20]}  Kxf5 {[%clk 0:00:06]} 52. Kd3 {[%clk 0:01:20]}  h5 {[%clk 0:00:06]} 53. Ke3 {[%clk 0:01:20]}  h4 {[%clk 0:00:07]} 54. Kf3 {[%clk 0:01:20]}  Bxd4 {[%clk 0:00:07]} 55. e6 {[%clk 0:01:19]}  Kxe6 {[%clk 0:00:07]} 56. Kg4 {[%clk 0:01:19]}  Kf6 {[%clk 0:00:08]} 57. Kxh4 {[%clk 0:01:19]}  Kf5 {[%clk 0:00:09]} 58. Kg3 {[%clk 0:01:19]}  Be3 {[%clk 0:00:09]} 59. Kf3 {[%clk 0:01:20]}  Bxf4 {[%clk 0:00:10]} 60. Ke2 {[%clk 0:01:20]}  Ke4 {[%clk 0:00:11]} 61. Kf2 {[%clk 0:01:20]}  d4 {[%clk 0:00:11]} 62. Ke2 {[%clk 0:01:20]}  d3+ {[%clk 0:00:12]} 63. Kd1 {[%clk 0:01:20]}  Be3 {[%clk 0:00:12]} 64. Ke1 {[%clk 0:01:21]}  Kf3 {[%clk 0:00:13]} 65. Kd1 {[%clk 0:01:21]}  Bd4 {[%clk 0:00:12]} 66. Kd2 {[%clk 0:01:21]}  Ke4 {[%clk 0:00:13]} 67. Kd1 {[%clk 0:01:21]}  Ke3 {[%clk 0:00:13]} 68. Ke1 {[%clk 0:01:21]}  d2+ {[%clk 0:00:13]} 69. Kd1 {[%clk 0:01:22]}  g5 {[%clk 0:00:13]} 70. Kc2 {[%clk 0:01:22]}  Ke2 {[%clk 0:00:14]} 71. Kb3 {[%clk 0:01:18]}  d1=Q+ {[%clk 0:00:14]} 0-1


[Site "https://www.chess.com"]

[Event "Titled Tuesday Blitz July 25 Late 2023"]
[White "Womacka, Mathias"]
[Black "morozcoma"]
[WhiteFideId "4611390"]
[WhiteElo "2503"]
[BlackElo "2322"]
[Result "1-0"]
[Round "2"]
[TimeControl "180+2"]
[Date "2023.07.25"]
[WhiteClock "0:01:25"]
[BlackClock "0:01:41"]
[Board "151"]

1. e4 {[%clk 0:03:00]}  e5 {[%clk 0:02:49]} 2. Nf3 {[%clk 0:03:00]}  Nc6 {[%clk 0:02:50]} 3. Bb5 {[%clk 0:03:00]}  a6 {[%clk 0:02:50]} 4. Bxc6 {[%clk 0:03:01]}  dxc6 {[%clk 0:02:50]} 5. O-O {[%clk 0:03:01]}  Bd6 {[%clk 0:02:49]} 6. d4 {[%clk 0:03:01]}  exd4 {[%clk 0:02:48]} 7. Qxd4 {[%clk 0:03:02]}  f6 {[%clk 0:02:47]} 8. Be3 {[%clk 0:03:01]}  Qe7 {[%clk 0:02:41]} 9. Nbd2 {[%clk 0:03:01]}  Be6 {[%clk 0:02:41]} 10. Nc4 {[%clk 0:02:59]}  c5 {[%clk 0:02:27]} 11. Nxd6+ {[%clk 0:02:38]}  cxd6 {[%clk 0:02:28]} 12. Qd3 {[%clk 0:02:23]}  O-O-O {[%clk 0:02:26]} 13. b4 {[%clk 0:02:06]}  Qc7 {[%clk 0:02:13]} 14. bxc5 {[%clk 0:01:57]}  dxc5 {[%clk 0:02:12]} 15. Qa3 {[%clk 0:01:54]}  c4 {[%clk 0:02:06]} 16. Rab1 {[%clk 0:01:49]}  Qc6 {[%clk 0:01:59]} 17. Nd4 {[%clk 0:01:39]}  Qxe4 {[%clk 0:01:57]} 18. Qc5+ {[%clk 0:01:30]}  Kb8 {[%clk 0:01:51]} 19. Nc6+ {[%clk 0:01:26]}  Qxc6 {[%clk 0:01:41]} 20. Qxc6 {[%clk 0:01:25]} 1-0


[Site "https://www.chess.com"]

[Event "Titled Tuesday Blitz July 25 Late 2023"]
[White "Korpics, Zsolt"]
[Black "Kanakaris, Georgios"]
[WhiteFideId "705241"]
[BlackFideId "4209460"]
[WhiteElo "2322"]
[BlackElo "2503"]
[Result "0-1"]
[Round "2"]
[TimeControl "180+2"]
[Date "2023.07.25"]
[WhiteClock "0:00:03"]
[BlackClock "0:00:10"]
[Board "152"]

1. e4 {[%clk 0:03:00]}  e6 {[%clk 0:03:00]} 2. d4 {[%clk 0:02:59]}  d5 {[%clk 0:03:00]} 3. Bd3 {[%clk 0:02:59]}  c5 {[%clk 0:02:54]} 4. Nf3 {[%clk 0:02:26]}  dxe4 {[%clk 0:02:41]} 5. Bxe4 {[%clk 0:02:27]}  Nf6 {[%clk 0:02:40]} 6. Bd3 {[%clk 0:02:23]}  Nc6 {[%clk 0:02:38]} 7. Be3 {[%clk 0:02:18]}  Nd5 {[%clk 0:02:21]} 8. c3 {[%clk 0:02:05]}  Nxe3 {[%clk 0:02:11]} 9. fxe3 {[%clk 0:02:06]}  Be7 {[%clk 0:02:09]} 10. O-O {[%clk 0:02:04]}  O-O {[%clk 0:02:09]} 11. Nbd2 {[%clk 0:02:01]}  e5 {[%clk 0:01:54]} 12. Nb3 {[%clk 0:01:48]}  cxd4 {[%clk 0:01:50]} 13. exd4 {[%clk 0:01:44]}  exd4 {[%clk 0:01:49]} 14. Nbxd4 {[%clk 0:01:43]}  Nxd4 {[%clk 0:01:42]} 15. Nxd4 {[%clk 0:01:44]}  Bf6 {[%clk 0:01:30]} 16. Kh1 {[%clk 0:01:23]}  g6 {[%clk 0:01:21]} 17. Bc4 {[%clk 0:00:58]}  Be5 {[%clk 0:01:04]} 18. Nf3 {[%clk 0:00:54]}  Qxd1 {[%clk 0:00:44]} 19. Raxd1 {[%clk 0:00:55]}  Bf6 {[%clk 0:00:45]} 20. Nd4 {[%clk 0:00:47]}  Kg7 {[%clk 0:00:43]} 21. Nb5 {[%clk 0:00:42]}  Bg4 {[%clk 0:00:37]} 22. Rd2 {[%clk 0:00:37]}  a6 {[%clk 0:00:31]} 23. Nc7 {[%clk 0:00:33]}  Rac8 {[%clk 0:00:26]} 24. Nd5 {[%clk 0:00:31]}  Bg5 {[%clk 0:00:25]} 25. Rd4 {[%clk 0:00:29]}  Be6 {[%clk 0:00:21]} 26. Bb3 {[%clk 0:00:25]}  Rfd8 {[%clk 0:00:20]} 27. Rfd1 {[%clk 0:00:12]}  Rc6 {[%clk 0:00:18]} 28. Nb4 {[%clk 0:00:10]}  Rxd4 {[%clk 0:00:17]} 29. cxd4 {[%clk 0:00:11]}  Rb6 {[%clk 0:00:16]} 30. Bxe6 {[%clk 0:00:11]}  fxe6 {[%clk 0:00:15]} 31. a3 {[%clk 0:00:11]}  Bf6 {[%clk 0:00:14]} 32. d5 {[%clk 0:00:11]}  exd5 {[%clk 0:00:11]} 33. Nxd5 {[%clk 0:00:12]}  Rxb2 {[%clk 0:00:10]} 34. Nxf6 {[%clk 0:00:11]}  Kxf6 {[%clk 0:00:11]} 35. h3 {[%clk 0:00:10]}  h5 {[%clk 0:00:10]} 36. Rd3 {[%clk 0:00:10]}  a5 {[%clk 0:00:10]} 37. Kh2 {[%clk 0:00:10]}  b5 {[%clk 0:00:09]} 38. Kg3 {[%clk 0:00:10]}  g5 {[%clk 0:00:09]} 39. Kf3 {[%clk 0:00:10]}  Ke5 {[%clk 0:00:08]} 40. g4 {[%clk 0:00:10]}  h4 {[%clk 0:00:08]} 41. Ke3 {[%clk 0:00:10]}  Rh2 {[%clk 0:00:07]} 42. Rd8 {[%clk 0:00:09]}  Rxh3+ {[%clk 0:00:07]} 43. Kd2 {[%clk 0:00:08]}  Rxa3 {[%clk 0:00:06]} 44. Rb8 {[%clk 0:00:08]}  b4 {[%clk 0:00:06]} 45. Rg8 {[%clk 0:00:08]}  Kf4 {[%clk 0:00:06]} 46. Rc8 {[%clk 0:00:04]}  Kxg4 {[%clk 0:00:06]} 47. Rc4+ {[%clk 0:00:05]}  Kg3 {[%clk 0:00:05]} 48. Rc1 {[%clk 0:00:06]}  h3 {[%clk 0:00:06]} 49. Rg1+ {[%clk 0:00:05]}  Kh4 {[%clk 0:00:07]} 50. Rh1 {[%clk 0:00:06]}  g4 {[%clk 0:00:07]} 51. Rg1 {[%clk 0:00:06]}  g3 {[%clk 0:00:07]} 52. Re1 {[%clk 0:00:06]}  h2 {[%clk 0:00:08]} 53. Re4+ {[%clk 0:00:06]}  Kh3 {[%clk 0:00:08]} 54. Re1 {[%clk 0:00:06]}  Ra2+ {[%clk 0:00:08]} 55. Kd3 {[%clk 0:00:05]}  g2 {[%clk 0:00:08]} 56. Re3+ {[%clk 0:00:06]}  Kg4 {[%clk 0:00:09]} 57. Re4+ {[%clk 0:00:07]}  Kf5 {[%clk 0:00:09]} 58. Re2 {[%clk 0:00:05]}  Rxe2 {[%clk 0:00:08]} 59. Kxe2 {[%clk 0:00:06]}  g1=Q {[%clk 0:00:09]} 60. Kd3 {[%clk 0:00:06]}  Qg4 {[%clk 0:00:08]} 61. Kd2 {[%clk 0:00:05]}  Qf3 {[%clk 0:00:08]} 62. Kc2 {[%clk 0:00:05]}  h1=Q {[%clk 0:00:09]} 63. Kb2 {[%clk 0:00:04]}  Qhg2+ {[%clk 0:00:09]} 64. Kc1 {[%clk 0:00:03]}  Qff1# {[%clk 0:00:10]} 0-1


[Site "https://www.chess.com"]

[Event "Titled Tuesday Blitz July 25 Late 2023"]
[White "Senthilkumar, Pranav"]
[Black "jero888"]
[WhiteFideId "2083477"]
[WhiteElo "2503"]
[BlackElo "2319"]
[Result "1-0"]
[Round "2"]
[TimeControl "180+2"]
[Date "2023.07.25"]
[WhiteClock "0:02:31"]
[BlackClock "0:00:43"]
[Board "153"]

1. Nf3 {[%clk 0:03:00]}  c5 {[%clk 0:02:59]} 2. b3 {[%clk 0:03:01]}  d5 {[%clk 0:02:58]} 3. Bb2 {[%clk 0:03:01]}  Nc6 {[%clk 0:02:59]} 4. e3 {[%clk 0:03:01]}  Bg4 {[%clk 0:02:58]} 5. Bb5 {[%clk 0:03:00]}  e6 {[%clk 0:02:55]} 6. O-O {[%clk 0:03:00]}  f6 {[%clk 0:02:54]} 7. d4 {[%clk 0:02:59]}  Bd6 {[%clk 0:02:51]} 8. dxc5 {[%clk 0:02:59]}  Bxc5 {[%clk 0:02:51]} 9. Be2 {[%clk 0:02:57]}  Nge7 {[%clk 0:02:50]} 10. c4 {[%clk 0:02:56]}  O-O {[%clk 0:02:40]} 11. cxd5 {[%clk 0:02:55]}  Nxd5 {[%clk 0:02:36]} 12. Nc3 {[%clk 0:02:55]}  Nxc3 {[%clk 0:02:19]} 13. Bxc3 {[%clk 0:02:54]}  Qxd1 {[%clk 0:02:14]} 14. Raxd1 {[%clk 0:02:55]}  Rfd8 {[%clk 0:02:14]} 15. Rc1 {[%clk 0:02:50]}  Be7 {[%clk 0:01:57]} 16. h3 {[%clk 0:02:43]}  Bh5 {[%clk 0:01:54]} 17. Bc4 {[%clk 0:02:41]}  Bf7 {[%clk 0:01:35]} 18. Nd4 {[%clk 0:02:40]}  Nxd4 {[%clk 0:01:26]} 19. exd4 {[%clk 0:02:41]}  Bd6 {[%clk 0:01:15]} 20. Rfe1 {[%clk 0:02:39]}  Re8 {[%clk 0:01:05]} 21. Bb5 {[%clk 0:02:39]}  Re7 {[%clk 0:01:04]} 22. Bb2 {[%clk 0:02:38]}  a6 {[%clk 0:01:02]} 23. Be2 {[%clk 0:02:37]}  Rc7 {[%clk 0:00:59]} 24. Rxc7 {[%clk 0:02:37]}  Bxc7 {[%clk 0:00:59]} 25. Bf3 {[%clk 0:02:37]}  Rb8 {[%clk 0:00:58]} 26. d5 {[%clk 0:02:37]}  exd5 {[%clk 0:00:55]} 27. Re7 {[%clk 0:02:37]}  Bd8 {[%clk 0:00:52]} 28. Rd7 {[%clk 0:02:37]}  Be6 {[%clk 0:00:52]} 29. Rd6 {[%clk 0:02:35]}  Kf7 {[%clk 0:00:49]} 30. Bxd5 {[%clk 0:02:34]}  Be7 {[%clk 0:00:43]} 31. Rxe6 {[%clk 0:02:31]} 1-0


[Site "https://www.chess.com"]

[Event "Titled Tuesday Blitz July 25 Late 2023"]
[White "Vifleemskaia, Svetlana"]
[Black "JERO-8914"]
[WhiteFideId "4129490"]
[WhiteElo "2317"]
[BlackElo "2500"]
[Result "0-1"]
[Round "2"]
[TimeControl "180+2"]
[Date "2023.07.25"]
[WhiteClock "0:00:00"]
[BlackClock "0:01:53"]
[Board "155"]

1. d4 {[%clk 0:03:00]}  Nf6 {[%clk 0:02:56]} 2. c4 {[%clk 0:03:00]}  e6 {[%clk 0:02:56]} 3. Nc3 {[%clk 0:03:00]}  d5 {[%clk 0:02:55]} 4. cxd5 {[%clk 0:03:00]}  Nxd5 {[%clk 0:02:55]} 5. e4 {[%clk 0:03:00]}  Nxc3 {[%clk 0:02:56]} 6. bxc3 {[%clk 0:03:01]}  c5 {[%clk 0:02:57]} 7. Rb1 {[%clk 0:03:01]}  Be7 {[%clk 0:02:57]} 8. Nf3 {[%clk 0:03:00]}  O-O {[%clk 0:02:57]} 9. Bd3 {[%clk 0:02:57]}  b6 {[%clk 0:02:56]} 10. O-O {[%clk 0:02:56]}  Bb7 {[%clk 0:02:56]} 11. Re1 {[%clk 0:02:55]}  Nd7 {[%clk 0:02:56]} 12. a4 {[%clk 0:02:52]}  Rc8 {[%clk 0:02:54]} 13. h4 {[%clk 0:02:40]}  Bxh4 {[%clk 0:02:45]} 14. g3 {[%clk 0:02:40]}  Be7 {[%clk 0:02:45]} 15. Kg2 {[%clk 0:02:41]}  f5 {[%clk 0:02:43]} 16. exf5 {[%clk 0:02:33]}  exf5 {[%clk 0:02:37]} 17. Bc4+ {[%clk 0:02:29]}  Kh8 {[%clk 0:02:37]} 18. Be6 {[%clk 0:02:21]}  cxd4 {[%clk 0:02:32]} 19. cxd4 {[%clk 0:02:17]}  Rc3 {[%clk 0:02:32]} 20. Be3 {[%clk 0:02:14]}  Nf6 {[%clk 0:02:26]} 21. Rb3 {[%clk 0:01:40]}  Rxb3 {[%clk 0:02:19]} 22. Qxb3 {[%clk 0:01:39]}  Nd5 {[%clk 0:02:08]} 23. Kg1 {[%clk 0:00:29]}  Nc7 {[%clk 0:02:04]} 24. Bf4 {[%clk 0:00:21]}  Nxe6 {[%clk 0:02:02]} 25. Rxe6 {[%clk 0:00:20]}  Bd5 {[%clk 0:02:03]} 26. Qe3 {[%clk 0:00:19]}  Bxe6 {[%clk 0:02:02]} 27. Qxe6 {[%clk 0:00:20]}  Bf6 {[%clk 0:02:01]} 28. d5 {[%clk 0:00:20]}  Qc8 {[%clk 0:01:59]} 29. Qe3 {[%clk 0:00:12]}  Re8 {[%clk 0:01:58]} 30. Qd3 {[%clk 0:00:11]}  Qd7 {[%clk 0:01:56]} 31. d6 {[%clk 0:00:11]}  h6 {[%clk 0:01:55]} 32. Nd4 {[%clk 0:00:08]}  Bxd4 {[%clk 0:01:55]} 33. Qxd4 {[%clk 0:00:08]}  Re1+ {[%clk 0:01:54]} 34. Kg2 {[%clk 0:00:07]}  Qc6+ {[%clk 0:01:54]} 35. f3 {[%clk 0:00:00]}  Qc2+ {[%clk 0:01:53]} 0-1


[Site "https://www.chess.com"]

[Event "Titled Tuesday Blitz July 25 Late 2023"]
[White "Zanette, Edgard Vinicius"]
[Black "Molenda, Marcin"]
[WhiteFideId "2109263"]
[BlackFideId "1173065"]
[WhiteElo "2310"]
[BlackElo "2500"]
[Result "0-1"]
[Round "2"]
[TimeControl "180+2"]
[Date "2023.07.25"]
[WhiteClock "0:00:14"]
[BlackClock "0:01:15"]
[Board "157"]

1. e4 {[%clk 0:02:55]}  c6 {[%clk 0:02:55]} 2. d4 {[%clk 0:02:55]}  d5 {[%clk 0:02:54]} 3. f3 {[%clk 0:02:53]}  g6 {[%clk 0:02:53]} 4. Be3 {[%clk 0:02:50]}  Bg7 {[%clk 0:02:53]} 5. Nc3 {[%clk 0:02:50]}  dxe4 {[%clk 0:02:51]} 6. fxe4 {[%clk 0:02:50]}  Qb6 {[%clk 0:02:52]} 7. Rb1 {[%clk 0:02:37]}  e5 {[%clk 0:02:51]} 8. Nf3 {[%clk 0:02:29]}  Bg4 {[%clk 0:02:50]} 9. Bc4 {[%clk 0:02:12]}  exd4 {[%clk 0:02:42]} 10. Bxd4 {[%clk 0:02:10]}  Bxd4 {[%clk 0:02:24]} 11. Qxd4 {[%clk 0:02:10]}  Qxd4 {[%clk 0:02:24]} 12. Nxd4 {[%clk 0:02:09]}  Ne7 {[%clk 0:02:21]} 13. O-O {[%clk 0:02:04]}  O-O {[%clk 0:02:20]} 14. h3 {[%clk 0:02:01]}  Bc8 {[%clk 0:02:18]} 15. Rf4 {[%clk 0:01:47]}  Nd7 {[%clk 0:02:15]} 16. a4 {[%clk 0:01:40]}  Ne5 {[%clk 0:02:14]} 17. Bb3 {[%clk 0:01:40]}  Bd7 {[%clk 0:01:59]} 18. Rbf1 {[%clk 0:01:37]}  Rad8 {[%clk 0:01:56]} 19. Nf3 {[%clk 0:01:36]}  Nxf3+ {[%clk 0:01:46]} 20. R1xf3 {[%clk 0:01:35]}  Be6 {[%clk 0:01:45]} 21. Bxe6 {[%clk 0:01:34]}  fxe6 {[%clk 0:01:46]} 22. Rxf8+ {[%clk 0:01:30]}  Rxf8 {[%clk 0:01:46]} 23. Kf2 {[%clk 0:01:22]}  e5 {[%clk 0:01:39]} 24. Ke3 {[%clk 0:01:14]}  Nc8 {[%clk 0:01:38]} 25. Nd1 {[%clk 0:01:06]}  Rxf3+ {[%clk 0:01:32]} 26. gxf3 {[%clk 0:01:06]}  Kf7 {[%clk 0:01:30]} 27. Nf2 {[%clk 0:01:05]}  Ke6 {[%clk 0:01:30]} 28. Nd3 {[%clk 0:01:04]}  b6 {[%clk 0:01:31]} 29. f4 {[%clk 0:01:00]}  exf4+ {[%clk 0:01:29]} 30. Nxf4+ {[%clk 0:00:57]}  Ke5 {[%clk 0:01:28]} 31. Nd3+ {[%clk 0:00:57]}  Kf6 {[%clk 0:01:28]} 32. h4 {[%clk 0:00:55]}  Ne7 {[%clk 0:01:27]} 33. Kf4 {[%clk 0:00:49]}  h6 {[%clk 0:01:27]} 34. Nf2 {[%clk 0:00:42]}  g5+ {[%clk 0:01:20]} 35. hxg5+ {[%clk 0:00:42]}  hxg5+ {[%clk 0:01:21]} 36. Ke3 {[%clk 0:00:42]}  Ng6 {[%clk 0:01:20]} 37. Ng4+ {[%clk 0:00:41]}  Ke6 {[%clk 0:01:20]} 38. Kd4 {[%clk 0:00:30]}  c5+ {[%clk 0:01:17]} 39. Kc4 {[%clk 0:00:16]}  Ne5+ {[%clk 0:01:17]} 40. Nxe5 {[%clk 0:00:15]}  Kxe5 {[%clk 0:01:18]} 41. Kd3 {[%clk 0:00:14]}  Kf4 {[%clk 0:01:15]} 0-1


[Site "https://www.chess.com"]